[Event "Titled Tuesday Blitz May 25 2021"]
[White "Rostovtsev, Dmitry"]
[Black "Zierk, Steven"]
[WhiteFideId "34278320"]
[BlackFideId "2034255"]
[WhiteElo "2143"]
[BlackElo "2502"]
[Result "1-0"]
[Round "08"]
[TimeControl "180+1"]
[Date "2021.05.25"]
[WhiteClock "0:00:03"]
[BlackClock "0:00:12"]

1. e4 {[%clk 0:03:00]}  e6 {[%clk 0:02:58]} 2. d4 {[%clk 0:03:00]}  d5 {[%clk 0:02:59]} 3. Nd2 {[%clk 0:03:01]}  c5 {[%clk 0:02:58]} 4. exd5 {[%clk 0:03:01]}  Qxd5 {[%clk 0:02:59]} 5. Ngf3 {[%clk 0:03:02]}  cxd4 {[%clk 0:03:00]} 6. Bc4 {[%clk 0:03:02]}  Qd7 {[%clk 0:03:00]} 7. Nb3 {[%clk 0:02:56]}  Nc6 {[%clk 0:02:58]} 8. O-O {[%clk 0:02:56]}  a6 {[%clk 0:02:56]} 9. Nbxd4 {[%clk 0:02:39]}  Nxd4 {[%clk 0:02:55]} 10. Nxd4 {[%clk 0:02:40]}  Nf6 {[%clk 0:02:54]} 11. c3 {[%clk 0:02:39]}  Bd6 {[%clk 0:02:54]} 12. Qe2 {[%clk 0:02:31]}  Qc7 {[%clk 0:02:42]} 13. h3 {[%clk 0:02:26]}  b5 {[%clk 0:02:37]} 14. Bb3 {[%clk 0:02:08]}  O-O {[%clk 0:02:25]} 15. Bg5 {[%clk 0:01:54]}  Bb7 {[%clk 0:02:24]} 16. Rad1 {[%clk 0:01:41]}  Ne4 {[%clk 0:02:18]} 17. Be3 {[%clk 0:01:37]}  Rad8 {[%clk 0:02:10]} 18. Bc2 {[%clk 0:01:08]}  Nf6 {[%clk 0:01:47]} 19. Bg5 {[%clk 0:01:01]}  Qc5 {[%clk 0:01:43]} 20. Bh4 {[%clk 0:00:34]}  Bb8 {[%clk 0:01:34]} 21. Nxe6 {[%clk 0:00:17]}  Qe7 {[%clk 0:01:24]} 22. Bxf6 {[%clk 0:00:09]}  Qxf6 {[%clk 0:01:21]} 23. Rxd8 {[%clk 0:00:05]}  Rxd8 {[%clk 0:01:19]} 24. Nxd8 {[%clk 0:00:06]}  Qxd8 {[%clk 0:01:19]} 25. Be4 {[%clk 0:00:07]}  Bc8 {[%clk 0:01:11]} 26. Rd1 {[%clk 0:00:07]}  Qc7 {[%clk 0:01:10]} 27. g3 {[%clk 0:00:08]}  g6 {[%clk 0:01:07]} 28. Bg2 {[%clk 0:00:06]}  Be6 {[%clk 0:01:04]} 29. Bd5 {[%clk 0:00:06]}  Bxh3 {[%clk 0:01:02]} 30. Qe8+ {[%clk 0:00:06]}  Kg7 {[%clk 0:01:02]} 31. Re1 {[%clk 0:00:05]}  Ba7 {[%clk 0:00:59]} 32. Qe5+ {[%clk 0:00:03]}  Qxe5 {[%clk 0:00:57]} 33. Rxe5 {[%clk 0:00:04]}  Kf8 {[%clk 0:00:56]} 34. Re1 {[%clk 0:00:04]}  Bc5 {[%clk 0:00:52]} 35. Bb7 {[%clk 0:00:05]}  Be6 {[%clk 0:00:49]} 36. Bxa6 {[%clk 0:00:04]}  b4 {[%clk 0:00:50]} 37. cxb4 {[%clk 0:00:03]}  Bxb4 {[%clk 0:00:51]} 38. Re4 {[%clk 0:00:04]}  Bc5 {[%clk 0:00:50]} 39. a3 {[%clk 0:00:04]}  Bf5 {[%clk 0:00:43]} 40. Re1 {[%clk 0:00:05]}  f6 {[%clk 0:00:40]} 41. Bf1 {[%clk 0:00:05]}  h5 {[%clk 0:00:36]} 42. b4 {[%clk 0:00:05]}  Bd6 {[%clk 0:00:36]} 43. Rd1 {[%clk 0:00:04]}  Ke7 {[%clk 0:00:36]} 44. Bg2 {[%clk 0:00:04]}  g5 {[%clk 0:00:35]} 45. Kf1 {[%clk 0:00:04]}  h4 {[%clk 0:00:35]} 46. gxh4 {[%clk 0:00:05]}  gxh4 {[%clk 0:00:36]} 47. Kg1 {[%clk 0:00:06]}  h3 {[%clk 0:00:35]} 48. Bf3 {[%clk 0:00:06]}  Bd7 {[%clk 0:00:29]} 49. Rd5 {[%clk 0:00:06]}  Bc6 {[%clk 0:00:20]} 50. Rd3 {[%clk 0:00:06]}  Bb5 {[%clk 0:00:20]} 51. Re3+ {[%clk 0:00:06]}  Be5 {[%clk 0:00:18]} 52. Bg4 {[%clk 0:00:07]}  h2+ {[%clk 0:00:19]} 53. Kg2 {[%clk 0:00:06]}  Kd6 {[%clk 0:00:18]} 54. Be2 {[%clk 0:00:03]}  Bd7 {[%clk 0:00:16]} 55. Rd3+ {[%clk 0:00:03]}  Kc7 {[%clk 0:00:16]} 56. Bf3 {[%clk 0:00:04]}  Bb5 {[%clk 0:00:15]} 57. Rd2 {[%clk 0:00:04]}  Kb6 {[%clk 0:00:15]} 58. Rd5 {[%clk 0:00:02]}  Bc6 {[%clk 0:00:14]} 59. Rd3 {[%clk 0:00:01]}  Bb5 {[%clk 0:00:14]} 60. Re3 {[%clk 0:00:02]}  Bc4 {[%clk 0:00:13]} 61. Rxe5 {[%clk 0:00:02]}  fxe5 {[%clk 0:00:14]} 62. Kxh2 {[%clk 0:00:03]}  Kb5 {[%clk 0:00:15]} 63. Bd1 {[%clk 0:00:03]}  Bd5 {[%clk 0:00:15]} 64. Kg3 {[%clk 0:00:03]}  Kc4 {[%clk 0:00:15]} 65. Kg4 {[%clk 0:00:04]}  Kc3 {[%clk 0:00:14]} 66. Kf5 {[%clk 0:00:04]}  e4 {[%clk 0:00:14]} 67. Ke5 {[%clk 0:00:04]}  Bb7 {[%clk 0:00:14]} 68. b5 {[%clk 0:00:05]}  Kd2 {[%clk 0:00:14]} 69. Bb3 {[%clk 0:00:05]}  Ke2 {[%clk 0:00:14]} 70. Bd5 {[%clk 0:00:06]}  e3 {[%clk 0:00:12]} 71. fxe3 {[%clk 0:00:03]} 1-0


[Site "https://www.chess.com"]

[Event "Titled Tuesday Blitz May 25 2021"]
[White "Sanal, Vahap"]
[Black "Sarana, Alexey"]
[WhiteFideId "6300545"]
[BlackFideId "24133795"]
[WhiteElo "2507"]
[BlackElo "2629"]
[Result "0-1"]
[Round "08"]
[TimeControl "180+1"]
[Date "2021.05.25"]
[WhiteClock "0:00:02"]
[BlackClock "0:00:04"]

1. d4 {[%clk 0:03:00]}  Nf6 {[%clk 0:02:59]} 2. Bf4 {[%clk 0:03:00]}  d5 {[%clk 0:02:59]} 3. Nf3 {[%clk 0:03:00]}  c5 {[%clk 0:03:00]} 4. e3 {[%clk 0:03:00]}  Nc6 {[%clk 0:03:01]} 5. Nbd2 {[%clk 0:02:59]}  Qb6 {[%clk 0:03:01]} 6. dxc5 {[%clk 0:03:00]}  Qxb2 {[%clk 0:03:01]} 7. Rb1 {[%clk 0:03:00]}  Qa3 {[%clk 0:03:02]} 8. Bb5 {[%clk 0:02:59]}  g6 {[%clk 0:03:01]} 9. Nd4 {[%clk 0:02:38]}  Qxc5 {[%clk 0:02:54]} 10. c4 {[%clk 0:02:16]}  Bg7 {[%clk 0:02:31]} 11. O-O {[%clk 0:02:14]}  dxc4 {[%clk 0:02:19]} 12. Rc1 {[%clk 0:02:02]}  Bd7 {[%clk 0:02:04]} 13. Rxc4 {[%clk 0:02:01]}  Qd5 {[%clk 0:01:55]} 14. e4 {[%clk 0:01:54]}  Qh5 {[%clk 0:01:37]} 15. Nxc6 {[%clk 0:01:54]}  Qxb5 {[%clk 0:01:29]} 16. Nd4 {[%clk 0:01:49]}  Qa6 {[%clk 0:01:28]} 17. Rc7 {[%clk 0:01:41]}  O-O {[%clk 0:01:26]} 18. Qb3 {[%clk 0:01:30]}  b6 {[%clk 0:01:20]} 19. Be5 {[%clk 0:01:22]}  Rfd8 {[%clk 0:01:15]} 20. h3 {[%clk 0:01:19]}  Ne8 {[%clk 0:01:11]} 21. Bxg7 {[%clk 0:01:15]}  Nxc7 {[%clk 0:01:11]} 22. Bh6 {[%clk 0:01:13]}  Ne6 {[%clk 0:01:07]} 23. Nf5 {[%clk 0:01:10]}  Re8 {[%clk 0:00:55]} 24. Rc1 {[%clk 0:00:34]}  Rac8 {[%clk 0:00:51]} 25. Rxc8 {[%clk 0:00:24]}  Qxc8 {[%clk 0:00:52]} 26. Ne3 {[%clk 0:00:20]}  Qc1+ {[%clk 0:00:38]} 27. Ndf1 {[%clk 0:00:20]}  Bc6 {[%clk 0:00:38]} 28. Qb4 {[%clk 0:00:18]}  Qc5 {[%clk 0:00:36]} 29. Qb2 {[%clk 0:00:17]}  Qd4 {[%clk 0:00:36]} 30. Qa3 {[%clk 0:00:13]}  Qxe4 {[%clk 0:00:36]} 31. Qxa7 {[%clk 0:00:11]}  g5 {[%clk 0:00:32]} 32. Qxb6 {[%clk 0:00:10]}  Rc8 {[%clk 0:00:32]} 33. Ng3 {[%clk 0:00:10]}  Qd4 {[%clk 0:00:28]} 34. Qa6 {[%clk 0:00:08]}  Bd7 {[%clk 0:00:10]} 35. Nef5 {[%clk 0:00:04]}  Qa1+ {[%clk 0:00:10]} 36. Kh2 {[%clk 0:00:04]}  Re8 {[%clk 0:00:10]} 37. Qa3 {[%clk 0:00:04]}  Qf6 {[%clk 0:00:10]} 38. Qd3 {[%clk 0:00:04]}  Bc6 {[%clk 0:00:08]} 39. Qc4 {[%clk 0:00:04]}  Nf4 {[%clk 0:00:06]} 40. h4 {[%clk 0:00:02]}  Qe6 {[%clk 0:00:04]} 0-1


[Site "https://www.chess.com"]

[Event "Titled Tuesday Blitz May 25 2021"]
[White "Schmakel, Sam"]
[Black "Noboa Silva, Kevin"]
[WhiteFideId "2039311"]
[BlackFideId "3618471"]
[WhiteElo "2356"]
[BlackElo "2161"]
[Result "1-0"]
[Round "08"]
[TimeControl "180+1"]
[Date "2021.05.25"]
[WhiteClock "0:01:10"]
[BlackClock "0:00:01"]

1. d4 {[%clk 0:03:00]}  Nf6 {[%clk 0:02:58]} 2. c4 {[%clk 0:03:00]}  g6 {[%clk 0:02:58]} 3. Nc3 {[%clk 0:03:01]}  d5 {[%clk 0:02:58]} 4. Nf3 {[%clk 0:02:58]}  Bg7 {[%clk 0:02:56]} 5. e3 {[%clk 0:02:56]}  O-O {[%clk 0:02:53]} 6. cxd5 {[%clk 0:02:56]}  Nxd5 {[%clk 0:02:52]} 7. Bc4 {[%clk 0:02:57]}  c6 {[%clk 0:02:45]} 8. e4 {[%clk 0:02:38]}  Nxc3 {[%clk 0:02:31]} 9. bxc3 {[%clk 0:02:39]}  c5 {[%clk 0:02:32]} 10. h3 {[%clk 0:02:06]}  Qc7 {[%clk 0:02:25]} 11. Bb3 {[%clk 0:01:58]}  cxd4 {[%clk 0:02:20]} 12. cxd4 {[%clk 0:01:59]}  Nc6 {[%clk 0:02:20]} 13. O-O {[%clk 0:01:51]}  Rd8 {[%clk 0:02:16]} 14. Be3 {[%clk 0:01:51]}  Nxd4 {[%clk 0:01:14]} 15. Nxd4 {[%clk 0:01:44]}  Bxd4 {[%clk 0:01:02]} 16. Bxd4 {[%clk 0:01:45]}  e5 {[%clk 0:01:02]} 17. Bxe5 {[%clk 0:01:45]}  Qe7 {[%clk 0:00:58]} 18. Bd5 {[%clk 0:01:37]}  Bxh3 {[%clk 0:00:31]} 19. Bb2 {[%clk 0:01:24]}  Be6 {[%clk 0:00:27]} 20. Qd4 {[%clk 0:01:24]}  f6 {[%clk 0:00:25]} 21. Qxf6 {[%clk 0:01:23]}  Qxf6 {[%clk 0:00:22]} 22. Bxf6 {[%clk 0:01:24]}  Rxd5 {[%clk 0:00:17]} 23. exd5 {[%clk 0:01:24]}  Bxd5 {[%clk 0:00:18]} 24. Rfe1 {[%clk 0:01:23]}  Rf8 {[%clk 0:00:16]} 25. Bg5 {[%clk 0:01:19]}  Bc6 {[%clk 0:00:14]} 26. Rad1 {[%clk 0:01:18]}  Rf5 {[%clk 0:00:11]} 27. Re7 {[%clk 0:01:16]}  a5 {[%clk 0:00:07]} 28. Rd8+ {[%clk 0:01:11]}  Rf8 {[%clk 0:00:07]} 29. Rxf8+ {[%clk 0:01:12]}  Kxf8 {[%clk 0:00:08]} 30. Rxh7 {[%clk 0:01:13]}  Bd5 {[%clk 0:00:05]} 31. a3 {[%clk 0:01:12]}  Bf7 {[%clk 0:00:04]} 32. Bd2 {[%clk 0:01:11]}  a4 {[%clk 0:00:01]} 33. Rh4 {[%clk 0:01:10]} 1-0


[Site "https://www.chess.com"]

[Event "Titled Tuesday Blitz May 25 2021"]
[White "Skatchkov, Pavel"]
[Black "Sawlin, Leonid"]
[WhiteFideId "4121848"]
[BlackFideId "4689542"]
[WhiteElo "2476"]
[BlackElo "2412"]
[Result "1-0"]
[Round "08"]
[TimeControl "180+1"]
[Date "2021.05.25"]
[WhiteClock "0:00:20"]
[BlackClock "0:00:12"]

1. d4 {[%clk 0:02:36]}  e6 {[%clk 0:02:58]} 2. c4 {[%clk 0:02:36]}  d5 {[%clk 0:02:58]} 3. Nf3 {[%clk 0:02:36]}  Nf6 {[%clk 0:02:59]} 4. g3 {[%clk 0:02:37]}  Be7 {[%clk 0:02:59]} 5. Bg2 {[%clk 0:02:38]}  O-O {[%clk 0:02:59]} 6. O-O {[%clk 0:02:38]}  c6 {[%clk 0:03:00]} 7. Qc2 {[%clk 0:02:37]}  b6 {[%clk 0:03:00]} 8. Nbd2 {[%clk 0:02:37]}  Na6 {[%clk 0:03:01]} 9. a3 {[%clk 0:02:36]}  Bb7 {[%clk 0:03:02]} 10. e4 {[%clk 0:02:27]}  Rc8 {[%clk 0:03:02]} 11. Rd1 {[%clk 0:02:21]}  c5 {[%clk 0:03:01]} 12. exd5 {[%clk 0:02:20]}  exd5 {[%clk 0:03:00]} 13. dxc5 {[%clk 0:02:15]}  Nxc5 {[%clk 0:02:57]} 14. b4 {[%clk 0:02:15]}  Ne6 {[%clk 0:02:58]} 15. Bb2 {[%clk 0:02:14]}  a5 {[%clk 0:02:47]} 16. Qb3 {[%clk 0:02:08]}  Qc7 {[%clk 0:02:11]} 17. Rac1 {[%clk 0:02:06]}  dxc4 {[%clk 0:02:02]} 18. Nxc4 {[%clk 0:02:05]}  Bd5 {[%clk 0:01:51]} 19. Nfe5 {[%clk 0:01:18]}  Bxg2 {[%clk 0:01:49]} 20. Kxg2 {[%clk 0:01:19]}  axb4 {[%clk 0:01:40]} 21. axb4 {[%clk 0:01:17]}  Rfd8 {[%clk 0:01:33]} 22. Na5 {[%clk 0:01:17]}  Qb8 {[%clk 0:01:24]} 23. Nac6 {[%clk 0:01:17]}  Qb7 {[%clk 0:01:24]} 24. b5 {[%clk 0:01:17]}  Bc5 {[%clk 0:01:24]} 25. Qf3 {[%clk 0:01:10]}  Rxd1 {[%clk 0:01:20]} 26. Rxd1 {[%clk 0:01:11]}  h6 {[%clk 0:01:12]} 27. Rd7 {[%clk 0:01:06]}  Qxd7 {[%clk 0:01:04]} 28. Nxd7 {[%clk 0:01:06]}  Nxd7 {[%clk 0:01:05]} 29. Qd5 {[%clk 0:00:53]}  Ndf8 {[%clk 0:01:02]} 30. f4 {[%clk 0:00:50]}  Nc7 {[%clk 0:00:57]} 31. Qc4 {[%clk 0:00:46]}  Re8 {[%clk 0:00:57]} 32. Be5 {[%clk 0:00:46]}  Nce6 {[%clk 0:00:55]} 33. h4 {[%clk 0:00:41]}  Nd7 {[%clk 0:00:51]} 34. Qd5 {[%clk 0:00:40]}  Nxe5 {[%clk 0:00:49]} 35. Nxe5 {[%clk 0:00:41]}  Rd8 {[%clk 0:00:49]} 36. Qb7 {[%clk 0:00:41]}  Rd2+ {[%clk 0:00:38]} 37. Kh3 {[%clk 0:00:41]}  Nd8 {[%clk 0:00:35]} 38. Qc8 {[%clk 0:00:39]}  Kh7 {[%clk 0:00:34]} 39. h5 {[%clk 0:00:35]}  Rd6 {[%clk 0:00:25]} 40. Nd3 {[%clk 0:00:34]}  Bd4 {[%clk 0:00:23]} 41. Nb4 {[%clk 0:00:31]}  Ne6 {[%clk 0:00:18]} 42. Nc6 {[%clk 0:00:27]}  Rd5 {[%clk 0:00:19]} 43. Kg4 {[%clk 0:00:23]}  Bf6 {[%clk 0:00:16]} 44. Qf8 {[%clk 0:00:22]}  Ng5 {[%clk 0:00:10]} 45. Qb8 {[%clk 0:00:20]}  Rxb5 {[%clk 0:00:08]} 46. fxg5 {[%clk 0:00:19]}  Rxg5+ {[%clk 0:00:08]} 47. Kf3 {[%clk 0:00:19]}  Rxh5 {[%clk 0:00:08]} 48. Qxb6 {[%clk 0:00:19]}  Rg5 {[%clk 0:00:09]} 49. Qb1+ {[%clk 0:00:19]}  Rg6 {[%clk 0:00:09]} 50. Nb8 {[%clk 0:00:16]}  h5 {[%clk 0:00:09]} 51. Nd7 {[%clk 0:00:17]}  Bg5 {[%clk 0:00:10]} 52. Nf8+ {[%clk 0:00:17]}  Kh6 {[%clk 0:00:10]} 53. Nxg6 {[%clk 0:00:18]}  fxg6 {[%clk 0:00:10]} 54. Qb8 {[%clk 0:00:19]}  Bf6 {[%clk 0:00:11]} 55. Qh8+ {[%clk 0:00:19]}  Kg5 {[%clk 0:00:12]} 56. Qb8 {[%clk 0:00:19]}  Kh6 {[%clk 0:00:12]} 57. Ke4 {[%clk 0:00:19]}  g5 {[%clk 0:00:12]} 58. Kf5 {[%clk 0:00:18]}  Kh7 {[%clk 0:00:13]} 59. Qe8 {[%clk 0:00:18]}  h4 {[%clk 0:00:12]} 60. Qh5+ {[%clk 0:00:18]}  Kg8 {[%clk 0:00:12]} 61. Kg6 {[%clk 0:00:19]}  Kf8 {[%clk 0:00:13]} 62. Qg4 {[%clk 0:00:19]}  Ke7 {[%clk 0:00:13]} 63. Qh5 {[%clk 0:00:19]}  hxg3 {[%clk 0:00:13]} 64. Qg4 {[%clk 0:00:19]}  Kd6 {[%clk 0:00:14]} 65. Qxg3+ {[%clk 0:00:19]}  Kd5 {[%clk 0:00:14]} 66. Kf5 {[%clk 0:00:19]}  Kd4 {[%clk 0:00:14]} 67. Qg4+ {[%clk 0:00:19]}  Kd5 {[%clk 0:00:14]} 68. Qe4+ {[%clk 0:00:19]}  Kc5 {[%clk 0:00:15]} 69. Ke6 {[%clk 0:00:19]}  Kb5 {[%clk 0:00:14]} 70. Kd5 {[%clk 0:00:19]}  Kb6 {[%clk 0:00:15]} 71. Qc4 {[%clk 0:00:20]}  Kb7 {[%clk 0:00:14]} 72. Qc5 {[%clk 0:00:20]}  g4 {[%clk 0:00:14]} 73. Qc6+ {[%clk 0:00:20]}  Kb8 {[%clk 0:00:14]} 74. Kc5 {[%clk 0:00:21]}  g3 {[%clk 0:00:14]} 75. Kb6 {[%clk 0:00:20]}  Bd8+ {[%clk 0:00:11]} 76. Ka6 {[%clk 0:00:20]}  g2 {[%clk 0:00:12]} 77. Qb7# {[%clk 0:00:20]} 1-0


[Site "https://www.chess.com"]

[Event "Titled Tuesday Blitz May 25 2021"]
[White "Taboas Rodriguez, Daniel"]
[Black "SmirnovAlexandrA"]
[WhiteFideId "2208466"]
[WhiteElo "2429"]
[BlackElo "2373"]
[Result "1-0"]
[Round "08"]
[TimeControl "180+1"]
[Date "2021.05.25"]
[WhiteClock "0:01:39"]
[BlackClock "0:01:53"]

1. d4 {[%clk 0:02:58]}  Nf6 {[%clk 0:02:57]} 2. Nf3 {[%clk 0:02:59]}  g6 {[%clk 0:02:57]} 3. c4 {[%clk 0:02:58]}  Bg7 {[%clk 0:02:57]} 4. Nc3 {[%clk 0:02:58]}  O-O {[%clk 0:02:58]} 5. e4 {[%clk 0:02:59]}  d6 {[%clk 0:02:58]} 6. Be2 {[%clk 0:03:00]}  e5 {[%clk 0:02:58]} 7. dxe5 {[%clk 0:03:00]}  dxe5 {[%clk 0:02:59]} 8. Qxd8 {[%clk 0:03:01]}  Rxd8 {[%clk 0:02:59]} 9. Bg5 {[%clk 0:03:02]}  Re8 {[%clk 0:02:59]} 10. Nd5 {[%clk 0:03:01]}  Nxd5 {[%clk 0:02:58]} 11. cxd5 {[%clk 0:03:02]}  c6 {[%clk 0:02:58]} 12. Bc4 {[%clk 0:03:02]}  cxd5 {[%clk 0:02:57]} 13. Bxd5 {[%clk 0:03:03]}  Nc6 {[%clk 0:02:56]} 14. O-O-O {[%clk 0:03:03]}  Be6 {[%clk 0:02:52]} 15. Bxe6 {[%clk 0:03:03]}  Rxe6 {[%clk 0:02:53]} 16. Rd7 {[%clk 0:03:02]}  Rc8 {[%clk 0:02:49]} 17. Kb1 {[%clk 0:03:01]}  b6 {[%clk 0:02:47]} 18. Rc1 {[%clk 0:03:00]}  f6 {[%clk 0:02:44]} 19. Be3 {[%clk 0:03:00]}  Bf8 {[%clk 0:02:41]} 20. Nd2 {[%clk 0:02:57]}  Re7 {[%clk 0:02:36]} 21. Rd6 {[%clk 0:02:51]}  Rec7 {[%clk 0:02:22]} 22. Rxf6 {[%clk 0:02:51]}  Be7 {[%clk 0:02:22]} 23. Rf3 {[%clk 0:02:36]}  Nd4 {[%clk 0:02:21]} 24. Rxc7 {[%clk 0:02:35]}  Rxc7 {[%clk 0:02:21]} 25. Bxd4 {[%clk 0:02:35]}  exd4 {[%clk 0:02:22]} 26. Rd3 {[%clk 0:02:35]}  Bc5 {[%clk 0:02:20]} 27. f4 {[%clk 0:02:24]}  Kf7 {[%clk 0:02:19]} 28. Nb3 {[%clk 0:02:11]}  Rd7 {[%clk 0:02:17]} 29. Kc2 {[%clk 0:02:09]}  Ke6 {[%clk 0:02:13]} 30. Rd1 {[%clk 0:02:09]}  g5 {[%clk 0:02:10]} 31. fxg5 {[%clk 0:02:03]}  Ke5 {[%clk 0:02:09]} 32. Kd3 {[%clk 0:02:03]}  Rf7 {[%clk 0:02:09]} 33. Nd2 {[%clk 0:01:59]}  Rf2 {[%clk 0:02:07]} 34. Nf3+ {[%clk 0:01:59]}  Kf4 {[%clk 0:02:05]} 35. Rd2 {[%clk 0:02:00]}  Rf1 {[%clk 0:01:58]} 36. Nxd4 {[%clk 0:01:46]}  Bxd4 {[%clk 0:01:55]} 37. Kxd4 {[%clk 0:01:46]}  Kxg5 {[%clk 0:01:56]} 38. Ke5 {[%clk 0:01:43]}  Kg6 {[%clk 0:01:54]} 39. Rd6+ {[%clk 0:01:38]}  Kf7 {[%clk 0:01:53]} 40. Rd7+ {[%clk 0:01:39]} 1-0


[Site "https://www.chess.com"]

[Event "Titled Tuesday Blitz May 25 2021"]
[White "Terry, Renato"]
[Black "Visakh N R"]
[WhiteFideId "3803457"]
[BlackFideId "25012223"]
[WhiteElo "2581"]
[BlackElo "2428"]
[Result "1-0"]
[Round "08"]
[TimeControl "180+1"]
[Date "2021.05.25"]
[WhiteClock "0:00:19"]
[BlackClock "0:00:09"]

1. d4 {[%clk 0:03:00]}  Nf6 {[%clk 0:02:59]} 2. Bg5 {[%clk 0:02:59]}  d5 {[%clk 0:02:49]} 3. Bxf6 {[%clk 0:02:57]}  exf6 {[%clk 0:02:49]} 4. e3 {[%clk 0:02:57]}  Bd6 {[%clk 0:02:49]} 5. c4 {[%clk 0:02:58]}  dxc4 {[%clk 0:02:48]} 6. Bxc4 {[%clk 0:02:59]}  O-O {[%clk 0:02:49]} 7. Qc2 {[%clk 0:02:56]}  f5 {[%clk 0:02:46]} 8. Nf3 {[%clk 0:02:54]}  c6 {[%clk 0:02:39]} 9. Nc3 {[%clk 0:02:52]}  g6 {[%clk 0:02:36]} 10. h4 {[%clk 0:02:48]}  Be6 {[%clk 0:02:33]} 11. Bxe6 {[%clk 0:02:44]}  fxe6 {[%clk 0:02:34]} 12. h5 {[%clk 0:02:35]}  Nd7 {[%clk 0:02:18]} 13. Qb3 {[%clk 0:02:26]}  Re8 {[%clk 0:02:11]} 14. hxg6 {[%clk 0:02:08]}  hxg6 {[%clk 0:02:11]} 15. O-O-O {[%clk 0:02:09]}  Qb6 {[%clk 0:01:51]} 16. Qc2 {[%clk 0:02:09]}  c5 {[%clk 0:01:50]} 17. d5 {[%clk 0:02:06]}  e5 {[%clk 0:01:38]} 18. e4 {[%clk 0:02:07]}  f4 {[%clk 0:01:35]} 19. Ng5 {[%clk 0:01:53]}  Be7 {[%clk 0:01:21]} 20. Ne6 {[%clk 0:01:45]}  Nf8 {[%clk 0:01:21]} 21. Rh6 {[%clk 0:01:45]}  Kf7 {[%clk 0:01:21]} 22. Rdh1 {[%clk 0:01:10]}  Bf6 {[%clk 0:01:21]} 23. Nxf8 {[%clk 0:01:03]}  Rxf8 {[%clk 0:01:21]} 24. Rh7+ {[%clk 0:01:03]}  Bg7 {[%clk 0:01:20]} 25. Qd1 {[%clk 0:00:57]}  Rh8 {[%clk 0:00:53]} 26. Qg4 {[%clk 0:00:55]}  Rxh7 {[%clk 0:00:53]} 27. Rxh7 {[%clk 0:00:56]}  Kg8 {[%clk 0:00:54]} 28. Rh1 {[%clk 0:00:55]}  c4 {[%clk 0:00:54]} 29. Rd1 {[%clk 0:00:44]}  Rf8 {[%clk 0:00:35]} 30. d6 {[%clk 0:00:43]}  Qxf2 {[%clk 0:00:35]} 31. Qe6+ {[%clk 0:00:40]}  Kh7 {[%clk 0:00:28]} 32. Rh1+ {[%clk 0:00:40]}  Bh6 {[%clk 0:00:28]} 33. Qe7+ {[%clk 0:00:36]}  Kg8 {[%clk 0:00:28]} 34. Nd1 {[%clk 0:00:25]}  Qxg2 {[%clk 0:00:08]} 35. Rxh6 {[%clk 0:00:25]}  f3 {[%clk 0:00:09]} 36. d7 {[%clk 0:00:22]}  c3 {[%clk 0:00:09]} 37. Qxf8+ {[%clk 0:00:20]}  Kxf8 {[%clk 0:00:09]} 38. d8=Q+ {[%clk 0:00:21]}  Kg7 {[%clk 0:00:09]} 39. Qh8+ {[%clk 0:00:19]} 1-0


[Site "https://www.chess.com"]

[Event "Titled Tuesday Blitz May 25 2021"]
[White "Timmermans, Mark"]
[Black "Pelopidass"]
[WhiteFideId "1026399"]
[WhiteElo "2776"]
[BlackElo "2528"]
[Result "1-0"]
[Round "08"]
[TimeControl "180+1"]
[Date "2021.05.25"]
[WhiteClock "0:00:36"]
[BlackClock "0:00:07"]

1. b4 {[%clk 0:03:00]}  Nf6 {[%clk 0:02:57]} 2. Bb2 {[%clk 0:03:00]}  d5 {[%clk 0:02:58]} 3. b5 {[%clk 0:03:00]}  a6 {[%clk 0:02:57]} 4. a4 {[%clk 0:03:00]}  axb5 {[%clk 0:02:57]} 5. axb5 {[%clk 0:03:01]}  Rxa1 {[%clk 0:02:57]} 6. Bxa1 {[%clk 0:03:02]}  e6 {[%clk 0:02:56]} 7. e3 {[%clk 0:03:03]}  Be7 {[%clk 0:02:56]} 8. c4 {[%clk 0:03:03]}  O-O {[%clk 0:02:56]} 9. Nf3 {[%clk 0:03:03]}  c6 {[%clk 0:02:53]} 10. Be2 {[%clk 0:03:02]}  cxb5 {[%clk 0:02:50]} 11. cxb5 {[%clk 0:03:02]}  Nbd7 {[%clk 0:02:50]} 12. O-O {[%clk 0:03:02]}  Nb6 {[%clk 0:02:50]} 13. d4 {[%clk 0:03:00]}  Bd7 {[%clk 0:02:50]} 14. Nbd2 {[%clk 0:03:00]}  Qb8 {[%clk 0:02:49]} 15. Ne5 {[%clk 0:03:00]}  Rc8 {[%clk 0:02:48]} 16. Qb1 {[%clk 0:02:58]}  Be8 {[%clk 0:02:48]} 17. Bd3 {[%clk 0:02:57]}  g6 {[%clk 0:02:45]} 18. Rc1 {[%clk 0:02:54]}  Nfd7 {[%clk 0:02:45]} 19. Bf1 {[%clk 0:02:48]}  Nxe5 {[%clk 0:02:41]} 20. dxe5 {[%clk 0:02:49]}  Rxc1 {[%clk 0:02:40]} 21. Qxc1 {[%clk 0:02:50]}  Qc8 {[%clk 0:02:39]} 22. Qb1 {[%clk 0:02:50]}  Bd7 {[%clk 0:02:33]} 23. Bd4 {[%clk 0:02:49]}  Bc5 {[%clk 0:02:32]} 24. Nb3 {[%clk 0:02:47]}  Bxd4 {[%clk 0:02:30]} 25. Nxd4 {[%clk 0:02:48]}  Nc4 {[%clk 0:02:25]} 26. Qa1 {[%clk 0:02:42]}  Nxe5 {[%clk 0:02:18]} 27. Nxe6 {[%clk 0:02:42]}  Bxe6 {[%clk 0:02:19]} 28. Qxe5 {[%clk 0:02:41]}  Qd7 {[%clk 0:01:45]} 29. h3 {[%clk 0:02:36]}  h5 {[%clk 0:01:44]} 30. f4 {[%clk 0:02:20]}  Bf5 {[%clk 0:01:41]} 31. b6 {[%clk 0:02:15]}  Qc6 {[%clk 0:01:35]} 32. Qd4 {[%clk 0:02:07]}  Be4 {[%clk 0:01:26]} 33. Qb2 {[%clk 0:01:49]}  Qc5 {[%clk 0:01:23]} 34. Kf2 {[%clk 0:01:48]}  Qc6 {[%clk 0:01:14]} 35. Be2 {[%clk 0:01:49]}  d4 {[%clk 0:01:12]} 36. Qxd4 {[%clk 0:01:48]}  Bxg2 {[%clk 0:01:12]} 37. h4 {[%clk 0:01:45]}  Bh1 {[%clk 0:01:09]} 38. Qd8+ {[%clk 0:01:38]}  Kg7 {[%clk 0:01:07]} 39. Qc7 {[%clk 0:01:39]}  Qg2+ {[%clk 0:01:05]} 40. Ke1 {[%clk 0:01:40]}  Qg3+ {[%clk 0:01:05]} 41. Kd2 {[%clk 0:01:40]}  Qxh4 {[%clk 0:01:05]} 42. Bc4 {[%clk 0:01:38]}  Qf6 {[%clk 0:01:03]} 43. Kd3 {[%clk 0:01:34]}  Qf5+ {[%clk 0:00:56]} 44. Kc3 {[%clk 0:01:31]}  h4 {[%clk 0:00:55]} 45. Bd3 {[%clk 0:01:21]}  Qf6+ {[%clk 0:00:54]} 46. Kd2 {[%clk 0:01:22]}  h3 {[%clk 0:00:54]} 47. f5 {[%clk 0:01:14]}  g5 {[%clk 0:00:50]} 48. Qg3 {[%clk 0:01:14]}  Bg2 {[%clk 0:00:50]} 49. e4 {[%clk 0:01:13]}  Qb2+ {[%clk 0:00:48]} 50. Bc2 {[%clk 0:01:04]}  Qd4+ {[%clk 0:00:43]} 51. Ke2 {[%clk 0:00:59]}  Kf6 {[%clk 0:00:33]} 52. Qg4 {[%clk 0:00:53]}  Qc4+ {[%clk 0:00:30]} 53. Bd3 {[%clk 0:00:53]}  Bf1+ {[%clk 0:00:29]} 54. Kxf1 {[%clk 0:00:52]}  Qxd3+ {[%clk 0:00:29]} 55. Ke1 {[%clk 0:00:46]}  Qe3+ {[%clk 0:00:26]} 56. Kd1 {[%clk 0:00:47]}  Ke5 {[%clk 0:00:26]} 57. Qh5 {[%clk 0:00:46]}  Qd3+ {[%clk 0:00:20]} 58. Kc1 {[%clk 0:00:46]}  Qxe4 {[%clk 0:00:20]} 59. Qxh3 {[%clk 0:00:45]}  Qxf5 {[%clk 0:00:20]} 60. Qc3+ {[%clk 0:00:44]}  Kf4 {[%clk 0:00:19]} 61. Qc7+ {[%clk 0:00:44]}  Qe5 {[%clk 0:00:18]} 62. Qxb7 {[%clk 0:00:44]}  g4 {[%clk 0:00:18]} 63. Qxf7+ {[%clk 0:00:44]}  Ke3 {[%clk 0:00:18]} 64. Qb3+ {[%clk 0:00:41]}  Kf4 {[%clk 0:00:15]} 65. b7 {[%clk 0:00:41]}  Qc7+ {[%clk 0:00:14]} 66. Kd2 {[%clk 0:00:41]}  Qd6+ {[%clk 0:00:13]} 67. Ke1 {[%clk 0:00:42]}  Qe5+ {[%clk 0:00:12]} 68. Kf1 {[%clk 0:00:42]}  Qb8 {[%clk 0:00:12]} 69. Kg2 {[%clk 0:00:42]}  Kg5 {[%clk 0:00:09]} 70. Qb5+ {[%clk 0:00:41]}  Kh4 {[%clk 0:00:08]} 71. Qc6 {[%clk 0:00:42]}  Qa7 {[%clk 0:00:07]} 72. Qh6# {[%clk 0:00:36]} 1-0


[Site "https://www.chess.com"]